Cogmind - Beta 12 @@@ ROGUE MODE // 2023.03.22 @ 02:15:18 Player: lyrabold Result: Destroyed by H-88 Terminator with KE Penetrator Performance ------------- Evolutions (9) 4500 Regions Visited (14) 2800 Robots Destroyed (26) 130 Value Destroyed (667) 667 Prototype IDs (1) 20 Alien Tech Used (0) 0 Bonus (1240) 1240 TOTAL SCORE: 9357 Bonus ------- Pacifist 200 High Alert Combat Kills 40 Entered DSFs 500 Hacked Protovariant 500 Cogmind --------- Core Integrity 0/1600 Matter 197/300 Energy 99/100 System Corruption 5% Temperature Cool (0) Movement Core (50) Location -1/Access Parts ------- > --- POWER (2) -------- (None) > --- PROPULSION (11) -- Centrium Leg > --- UTILITY (9) ------ Experimental Optical Array > --- WEAPON (3) ------- (None) > --- INVENTORY (5) ---- Nova Cannon Gamma Bomb Array Improved Remote Datajack Peak State ------------ > --- POWER ------------ Quantum Reactor > --- PROPULSION ------- Improved Antigrav System Improved Linear Gravjet Combat Linear Gravjet Combat Linear Gravjet Combat Linear Gravjet Combat Linear Gravjet > --- UTILITY ---------- Experimental Optical Array Advanced Signal Interpreter Advanced Transmission Jammer Layered Heavy Armor Plating Improved Hacking Suite Drone Bay > --- WEAPON ----------- Nova Cannon > --- INVENTORY -------- Gamma Bomb Array Improved Remote Datajack [Rating: 110] Favorites ----------- Power Angular Momentum Engine Engine Angular Momentum Engine Reactor Quantum Reactor Propulsion Combat Linear Gravjet Treads Light Treads Leg Centrium Leg Hover Unit Combat Linear Gravjet Flight Unit VTOL Module Utility Hacking Suite Device Advanced Transmission Jammer Processor Advanced Signal Interpreter Hackware Hacking Suite Protection Layered Heavy Armor Plating Weapon Katana Energy Cannon Nova Cannon Ballistic Cannon Mass Driver Launcher Missile Launcher Special Weapon Improved Remote Datajack Impact Weapon Heavy Flail Slashing Weapon Katana Build | -11 -10 -10 -9 -8 -8 -8 -6 -6 -5 -4 -3 -3 -2 -1 ------- Run | Jun Mat Min Mat Mat Sto Rec Fac DSF Fac Fac Res Tes Res Acc Slots Evolved 18 | . . . 2 2 . . 4 . 2 2 2 . 2 2 Power 1 | . . . . . . . . . . . . . . 1 Propulsion 9 | . . . 1 1 . . 2 . 1 2 1 . 1 . Utility 7 | . . . 1 1 . . 2 . 1 . 1 . 1 . Weapon 1 | . . . . . . . . . . . . . . 1 Parts Attached 71 | 2 . 1 3 1 7 . . 2 16 1 12 1 12 13 Power 5 | . . . . . . . . . 3 . . . 1 1 Engine 3 | . . . . . . . . . 3 . . . . . Core . | . . . . . . . . . . . . . . . Reactor 2 | . . . . . . . . . . . . . 1 1 Propulsion 32 | 2 . . 2 . 3 . . 1 9 . 6 . 5 4 Treads 8 | 2 . . 2 . . . . 1 . . 3 . . . Leg 1 | . . . . . . . . . . . . . . 1 Wheel . | . . . . . . . . . . . . . . . Hover 10 | . . . . . . . . . 3 . . . 4 3 Flight 13 | . . . . . 3 . . . 6 . 3 . 1 . Utility 14 | . . 1 . . 1 . . . 2 1 3 1 1 4 Device 5 | . . . . . . . . . 1 . 1 . 1 2 Storage . | . . . . . . . . . . . . . . . Processor 2 | . . . . . . . . . . . 1 1 . . Hackware 6 | . . 1 . . 1 . . . 1 1 1 . . 1 Protection 1 | . . . . . . . . . . . . . . 1 Artifact . | . . . . . . . . . . . . . . . Weapon 20 | . . . 1 1 3 . . 1 2 . 3 . 5 4 Energy Gun . | . . . . . . . . . . . . . . . Energy Cannon 7 | . . . . . . . . . . . . . 3 4 Ballistic Gun . | . . . . . . . . . . . . . . . Ballistic Cannon 1 | . . . . . . . . 1 . . . . . . Launcher 5 | . . . 1 . 2 . . . . . 1 . 1 . Special Weapon 2 | . . . . . . . . . 1 . . . 1 . Impact Weapon 3 | . . . . . . . . . 1 . 2 . . . Slashing Weapon 2 | . . . . 1 1 . . . . . . . . . Piercing Weapon . | . . . . . . . . . . . . . . . Special Melee Weapon . | . . . . . . . . . . . . . . . Unidentified Prototypes 1 | . . . . . . . . . . . . 1 . . Corrupted Parts 3 | . . . . . . . . . . . 3 . . . System Corruption 14 | . . . . . . . . . . . 14 . . . Parts Lost 45 | . . . 3 . 3 . . 1 8 . 14 1 1 14 Power 2 | . . . . . . . . . . . 1 . . 1 Propulsion 27 | . . . 2 . . . . 1 6 . 9 1 1 7 Utility 12 | . . . 1 . 1 . . . 1 . 3 . . 6 Weapon 4 | . . . . . 2 . . . 1 . 1 . . . Highest Loss Streak 10 | . . . 2 . 3 . . 1 8 . 7 1 1 10 To Critical Strikes . | . . . . . . . . . . . . . . . Average Slot Usage (%) 31 | . 28 39 29 24 27 36 26 24 35 47 37 14 18 34 Treads 4 | . 28 28 25 18 2 . . . . . 1 2 . . Hover 4 | . . . . . . . . . 10 5 1 . 3 12 Flight 6 | . . . . . 15 27 20 17 13 21 12 . . . Device 2 | . . . . . . . . . . 5 3 . . 5 Processor 3 | . . . . . . . . . . . 1 6 8 7 Hackware 3 | . . 11 2 . 1 . . . 1 . 5 4 4 3 Slashing Weapon 1 | . . . . 6 8 9 6 6 2 . . . . . Naked Turns . | . . . . . . . . . . . . . . . Heaviest Build 59 | . . . . 2 2 2 2 2 21 21 24 . 12 59 Greatest Support 70 | 20 3 3 3 3 12 12 12 20 22 22 70 3 42 68 Greatest Overweight (x) 2 | . . . . . . . . . . . 2 . . . Average Overweight (x) . | . . . . . . . . . . . . . . . Largest Inventory Capacity 5 | 5 5 5 5 5 5 5 5 5 5 5 5 5 5 5 Average Capacity 5 | 5 5 5 5 5 5 5 5 5 5 5 5 5 5 5 Most Carried 5 | . . 4 4 2 5 3 3 5 5 4 5 3 5 5 Average Carried 3 | . . 2 3 2 3 3 3 3 4 4 3 2 3 2 Final Capacity 5 | 5 5 5 5 5 5 5 5 5 5 5 5 5 5 5 Final Carried 5 | . . 4 2 2 3 3 3 5 4 4 2 3 5 3 Class Distribution -------------------- 67% | Mutant 27% | Sprinter 5% | Hacker-Mutant Dominant Class ---------------- Mutant | -10/Materials Mutant | -10/Mines Mutant | -9/Materials Mutant | -8/Materials Sprinter | -8/Storage Sprinter | -8/Recycling Sprinter | -6/Factory Sprinter | -6/DSF Mutant | -5/Factory Sprinter | -4/Factory Sprinter | -3/Research Mutant | -3/Testing Mutant | -2/Research Mutant | -1/Access Resources | -11 -10 -10 -9 -8 -8 -8 -6 -6 -5 -4 -3 -3 -2 -1 ----------- Run | Jun Mat Min Mat Mat Sto Rec Fac DSF Fac Fac Res Tes Res Acc Matter Collected 614 | 156 . . 58 20 10 . . . 166 . 133 . . 71 Remotely . | . . . . . . . . . . . . . . . Salvage Created 602 | . . . 135 . 43 . . . 65 16 343 . . . Parts 33 | . . . 9 . 5 . . . 9 . 10 . . . Haulers Intercepted . | . . . . . . . . . . . . . . . Recyclers Shooed 1 | . . . . . . . . . . . 1 . . . Parts Field Recycled . | . . . . . . . . . . . . . . . Retrieved Matter . | . . . . . . . . . . . . . . . Parts Self-Destructed . | . . . . . . . . . . . . . . . Prevented . | . . . . . . . . . . . . . . . Kills | -11 -10 -10 -9 -8 -8 -8 -6 -6 -5 -4 -3 -3 -2 -1 ------- Run | Jun Mat Min Mat Mat Sto Rec Fac DSF Fac Fac Res Tes Res Acc Combat Hostiles Destroyed 21 | . . . 5 . 4 . . . 5 . 7 . . . Melee 3 | . . . . . 1 . . . 1 . 1 . . . AOE 17 | . . . 5 . 3 . . . 4 . 5 . . . Classes Destroyed 5 | . . . 4 . . . . . . 1 . . . . Worker 2 | . . . 1 . . . . . 1 . . . . . Recycler 2 | . . . 1 . . . . . . . 1 . . . Operator 1 | . . . . . . . . . . 1 . . . . Swarmer 20 | . . . 4 . 4 . . . 5 . 7 . . . Duelist 1 | . . . 1 . . . . . . . . . . . Best Kill Streak 6 | . . . 6 . 4 . . . 6 1 5 . . . Combat Bots Only 5 | . . . 5 . 4 . . . 5 . 4 . . . Max Kills in Single Turn 5 | . . . 3 . 2 . . . 5 1 3 . . . Gunslinging . | . . . . . . . . . . . . . . . Exploded 4 | . . . 3 . 2 . . . 4 . 3 . . . Melee 1 | . . . . . 1 . . . 1 . 1 . . . Uniques/NPCs Destroyed . | . . . . . . . . . . . . . . . Combat | -11 -10 -10 -9 -8 -8 -8 -6 -6 -5 -4 -3 -3 -2 -1 -------- Run | Jun Mat Min Mat Mat Sto Rec Fac DSF Fac Fac Res Tes Res Acc Damage Taken 9787 | . 173 57 499 281 357 . . 106 509 102 2245 355 951 4152 Core 4156 | . 27 . 117 183 226 . . 80 153 66 907 312 485 1600 Absorbed by Shields . | . . . . . . . . . . . . . . . Core Remaining (%) 69 | 100 . 89 70 . . 25 . 90 84 94 . 6 66 . Volleys Fired 22 | . . . 3 . 2 . . . . . 2 . 3 12 Largest 1 | . . . 1 . 1 . . . . . 1 . 1 1 Hottest 113 | . . . 36 . 36 . . . . . 80 . 113 113 Shots Fired 22 | . . . 3 . 2 . . . . . 2 . 3 12 Gun . | . . . . . . . . . . . . . . . Cannon 14 | . . . . . . . . . . . . . 2 12 Launcher 7 | . . . 3 . 2 . . . . . 2 . . . Special 1 | . . . . . . . . . . . . . 1 . Kinetic . | . . . . . . . . . . . . . . . Thermal 14 | . . . . . . . . . . . . . 2 12 Explosive 5 | . . . 3 . 2 . . . . . . . . . Electromagnetic 2 | . . . . . . . . . . . 2 . . . Robot Hit Streak 3 | . . . 1 . 2 . . . . . 3 . 2 . Robot Miss Streak 3 | . . . 1 . . . . . . . 3 . . 2 Penetration Max . | . . . . . . . . . . . . . . . Secondary Targets . | . . . . . . . . . . . . . . . Shots Hit Robots 15 | . . . 1 1 2 . . . 3 1 5 . 2 . Core Hits 44 | . 2 . 11 . 9 . . . 5 . 15 . . 2 Critical Kills . | . . . . . . . . . . . . . . . Critical Parts Destroyed 1 | . . . . . . . . . . . 1 . . . Critical Strikes 1 | . . . . . . . . . . . 1 . . . Smash 1 | . . . . . . . . . . . 1 . . . Melee Attacks 21 | . . . . 1 2 . . . 7 2 9 . . . Impact 13 | . . . . . . . . . 2 2 9 . . . Slashing 8 | . . . . 1 2 . . . 5 . . . . . Piercing . | . . . . . . . . . . . . . . . Sneak Attacks 1 | . . . . . . . . . . . 1 . . . Combat Hostiles . | . . . . . . . . . . . . . . . Follow-up Attacks . | . . . . . . . . . . . . . . . Damage Inflicted 2560 | . 33 15 468 51 318 . . . 399 54 1097 . 50 75 Guns . | . . . . . . . . . . . . . . . Cannons 39 | . . . . . . . . . . . . . 39 . Explosions 1874 | . . . 426 . 279 . . . 305 . 822 . . 42 Melee 472 | . . . . 36 39 . . . 94 54 249 . . . Ramming 175 | . 33 15 42 15 . . . . . . 26 . 11 33 Kinetic . | . . . . . . . . . . . . . . . Thermal 344 | . . . . . . . . . 305 . . . 39 . Explosive 1324 | . . . 426 . 279 . . . . . 577 . . 42 Electromagnetic 245 | . . . . . . . . . . . 245 . . . Impact 329 | . . . . . . . . . 26 54 249 . . . Slashing 143 | . . . . 36 39 . . . 68 . . . . . Piercing . | . . . . . . . . . . . . . . . Highest Corruption 20 | . 3 3 5 . . 1 . . . . 20 20 1 5 Average Corruption 6 | . 2 3 5 . . 1 . . . . 10 20 1 3 Corruption Purged . | . . . . . . . . . . . . . . . Corruption Blocked . | . . . . . . . . . . . . . . . Effects 21 | . . 3 3 . . 1 . . . . 9 3 . 2 Message Errors 6 | . . 1 2 . . 1 . . . . 1 1 . . Matter Fused 6 | . . 2 . . . . . . . . 3 . . 1 Heat Flow Errors 1 | . . . . . . . . . . . . 1 . . Energy Discharges 2 | . . . . . . . . . . . . 1 . 1 Data Loss (minor) 1 | . . . 1 . . . . . . . . . . . Alerts 3 | . . . . . . . . . . . 3 . . . Misdirections 2 | . . . . . . . . . . . 2 . . . Overload Shots . | . . . . . . . . . . . . . . . Overflow Damage 568 | . . . 22 . 4 . . . 139 44 359 . . . Projectiles . | . . . . . . . . . . . . . . . Explosions 335 | . . . 22 . 4 . . . 139 . 170 . . . Melee 233 | . . . . . . . . . . 44 189 . . . Knockbacks 3 | . . . . . . . . . . 1 2 . . . Impact 3 | . . . . . . . . . . 1 2 . . . Kinetic . | . . . . . . . . . . . . . . . Secondary . | . . . . . . . . . . . . . . . Self-Inflicted Damage 621 | . 13 7 74 7 100 . . . 187 . 159 . 5 69 Shots 10 | . . . 2 . 2 . . . 2 . 3 . . 1 Rammed 39 | . 11 1 11 2 . . . . . . 5 . 1 8 Targets Rammed 39 | . 11 1 11 2 . . . . . . 5 . 1 8 Kicked . | . . . . . . . . . . . . . . . Crushed . | . . . . . . . . . . . . . . . Highest Temperature 419 | . . 2 . . 11 . . . . . 28 196 18 419 Average Temperature 91 | . . 2 . . 11 . . . . . 18 150 12 96 Received Heat Transfer 1164 | . . 42 180 45 63 . . . 9 21 381 . 63 360 Siege Activations . | . . . . . . . . . . . . . . . Robots Corrupted 2 | . . . . . . . . . . . 2 . . . Combat Hostiles 1 | . . . . . . . . . . . 1 . . . Parts Fried 2 | . . . . . . . . . . . 2 . . . Impact Corruptions 7 | . . . . . . . . . . 2 5 . . . Robots Melted . | . . . . . . . . . . . . . . . Combat Hostiles . | . . . . . . . . . . . . . . . Parts Melted . | . . . . . . . . . . . . . . . Heat Transferred 287 | . . . . . . . . . 250 . . . 37 . Parts Sabotaged . | . . . . . . . . . . . . . . . Parts Stolen . | . . . . . . . . . . . . . . . Parts Stripped . | . . . . . . . . . . . . . . . Power Chain Reactions . | . . . . . . . . . . . . . . . Missiles Intercepted . | . . . . . . . . . . . . . . . Alert | -11 -10 -10 -9 -8 -8 -8 -6 -6 -5 -4 -3 -3 -2 -1 ------- Run | Jun Mat Min Mat Mat Sto Rec Fac DSF Fac Fac Res Tes Res Acc Peak Influence 595 | . 34 13 172 81 340 142 273 206 301 212 565 277 278 595 Initial 259 | . . 13 4 72 40 138 259 191 102 147 111 238 150 166 Average 217 | . 23 13 67 79 175 141 265 193 188 175 347 270 186 340 Maximum Alert Level 2 | . . . . . 1 . 1 1 1 1 2 1 1 2 Low Security (%) 56 | 100 100 100 100 100 51 100 . 91 58 88 24 . 77 19 Level 1 27 | . . . . . 48 . 100 8 41 11 25 100 22 38 Level 2 16 | . . . . . . . . . . . 50 . . 41 Level 3 . | . . . . . . . . . . . . . . . Level 4 . | . . . . . . . . . . . . . . . Level 5 . | . . . . . . . . . . . . . . . High Security . | . . . . . . . . . . . . . . . Max Security . | . . . . . . . . . . . . . . . Squads Dispatched 28 | . . . 4 3 2 . . 1 2 2 6 2 1 5 Investigation 15 | . . . 1 1 1 . . . 2 1 3 1 1 4 Extermination 1 | . . . . . . . . . . . . . . 1 Reinforcement 11 | . . . 3 2 1 . . 1 . 1 3 . . . Assault 1 | . . . . . . . . . . . . 1 . . Garrison . | . . . . . . . . . . . . . . . Intercept . | . . . . . . . . . . . . . . . Searches Triggered 2 | . . . . . . . . . . . 1 . . 1 Construction Impeded 2 | . . . 1 . . . . . . . 1 . . . Haulers Reinforced . | . . . . . . . . . . . . . . . Active Scanning Responses . | . . . . . . . . . . . . . . . Cargo Convoy Interrupts . | . . . . . . . . . . . . . . . Stealth | -11 -10 -10 -9 -8 -8 -8 -6 -6 -5 -4 -3 -3 -2 -1 --------- Run | Jun Mat Min Mat Mat Sto Rec Fac DSF Fac Fac Res Tes Res Acc Distress Signals 8 | . . . 1 1 . . . . . 1 1 . 2 2 Communications Jammed 12 | . . . . . . . . . . . . . . 12 Distress Signals 11 | . . . . . . . . . . . . . . 11 Times Spotted 195 | . 4 2 16 11 21 . . 4 12 12 44 2 19 48 Peak Tracking Total 23 | . 6 2 11 11 16 . . 3 5 11 23 2 17 18 Tactical Retreats 18 | . . . . . 3 . . 1 2 . 3 . 1 8 Traps | -11 -10 -10 -9 -8 -8 -8 -6 -6 -5 -4 -3 -3 -2 -1 ------- Run | Jun Mat Min Mat Mat Sto Rec Fac DSF Fac Fac Res Tes Res Acc Traps Triggered 1 | . . . . . . . . 1 . . . . . . Indirectly . | . . . . . . . . . . . . . . . Trap Hack Attempts . | . . . . . . . . . . . . . . . Triggered . | . . . . . . . . . . . . . . . Disarmed . | . . . . . . . . . . . . . . . Reprogrammed . | . . . . . . . . . . . . . . . Reused . | . . . . . . . . . . . . . . . Traps Extracted . | . . . . . . . . . . . . . . . Installed . | . . . . . . . . . . . . . . . Triggered . | . . . . . . . . . . . . . . . Most Traps Carried 1 | . . . . . . . . 1 . . . . . . Machines | -11 -10 -10 -9 -8 -8 -8 -6 -6 -5 -4 -3 -3 -2 -1 ---------- Run | Jun Mat Min Mat Mat Sto Rec Fac DSF Fac Fac Res Tes Res Acc Machines Disabled 7 | . . . . . 1 . . . 2 . 2 . . 2 Max in Single Turn 2 | . . . . . 1 . . . 2 . 1 . . 1 Energy Cycler 1 | . . . . . . . . . . . . . . 1 Machines Repaired . | . . . . . . . . . . . . . . . Machines Sabotaged . | . . . . . . . . . . . . . . . Overloaded Fab Kills . | . . . . . . . . . . . . . . . Hacking | -11 -10 -10 -9 -8 -8 -8 -6 -6 -5 -4 -3 -3 -2 -1 --------- Run | Jun Mat Min Mat Mat Sto Rec Fac DSF Fac Fac Res Tes Res Acc Machines Accessed 30 | . 3 1 1 2 2 4 2 . 3 2 3 2 2 3 Terminals 29 | . 3 . 1 2 2 4 2 . 3 2 3 2 2 3 Fabricators . | . . . . . . . . . . . . . . . Repair Stations . | . . . . . . . . . . . . . . . Recycling Units . | . . . . . . . . . . . . . . . Scanalyzers . | . . . . . . . . . . . . . . . Garrison Access . | . . . . . . . . . . . . . . . Total Hacks 91 | . 8 1 3 9 6 15 3 . 9 7 13 4 5 8 Successful 32 | . 3 1 . 5 2 4 2 . 1 3 4 1 3 3 Failed 59 | . 5 . 3 4 4 11 1 . 8 4 9 3 2 5 Catastrophic 16 | . . . . 1 2 3 . . 2 1 2 2 1 2 Database Lockouts . | . . . . . . . . . . . . . . . Manual 39 | . 4 . . 5 2 12 1 . 6 2 3 1 1 2 Terminals 90 | . 8 . 3 9 6 15 3 . 9 7 13 4 5 8 Fabricators . | . . . . . . . . . . . . . . . Repair Stations . | . . . . . . . . . . . . . . . Recycling Units . | . . . . . . . . . . . . . . . Scanalyzers . | . . . . . . . . . . . . . . . Garrison Access . | . . . . . . . . . . . . . . . Terminal Hacks 23 | . 2 1 . 3 2 2 2 . . 3 2 1 2 3 Open Door 1 | . . 1 . . . . . . . . . . . . Open DSF 1 | . . . . . . . 1 . . . . . . . Level Access Points 1 | . . . . . . . . . . . . . . 1 Branch Access Points 2 | . . . . . 1 . . . . 1 . . . . Terminal Index 4 | . . . . . . . 1 . . 1 1 . . 1 Maintenance Status 1 | . . . . . . . . . . . . . 1 . Investigation Status 1 | . . . . . . . . . . 1 . . . . Reinforcement Status 1 | . . . . . . . . . . . 1 . . . Hauler Manifests 1 | . . . . 1 . . . . . . . . . . Zone Layout 9 | . 2 . . 2 1 2 . . . . . . 1 1 Protovariant Controls 1 | . . . . . . . . . . . . 1 . . Fabricator Hacks . | . . . . . . . . . . . . . . . Repair Station Hacks . | . . . . . . . . . . . . . . . Recycling Unit Hacks . | . . . . . . . . . . . . . . . Scanalyzer . | . . . . . . . . . . . . . . . Garrison Access Hacks . | . . . . . . . . . . . . . . . Unauthorized Hacks 9 | . 1 . . 2 . 2 . . 1 . 2 . 1 . Terminals 9 | . 1 . . 2 . 2 . . 1 . 2 . 1 . Botnet 8 | . 1 . . 2 . 2 . . 1 . 1 . 1 . Operators 1 | . . . . . . . . . . . 1 . . . Fabricators . | . . . . . . . . . . . . . . . Repair Stations . | . . . . . . . . . . . . . . . Recycling Units . | . . . . . . . . . . . . . . . Scanalyzers . | . . . . . . . . . . . . . . . Garrison Access . | . . . . . . . . . . . . . . . Data Cores Recovered 1 | . . . . . . . . . . 1 . . . . Used 1 | . . . . . . . . . . 1 . . . . Hacking Detections 29 | . 3 . 1 2 2 4 2 . 3 2 3 2 2 3 Full Trace Events 19 | . 1 . 1 1 1 4 . . 2 1 3 1 1 3 Feedback Events 4 | . 1 . . . . 1 . . . . 1 . . 1 Corruption 3 | . 1 . . . . 1 . . . . 1 . . . Hackware Fried 1 | . . . . . . . . . . . . . . 1 Feedback Blocked . | . . . . . . . . . . . . . . . Robot Schematics Acquired . | . . . . . . . . . . . . . . . Robots Built . | . . . . . . . . . . . . . . . Authchips . | . . . . . . . . . . . . . . . Time . | . . . . . . . . . . . . . . . Total Robot Build Rating . | . . . . . . . . . . . . . . . Part Schematics Acquired . | . . . . . . . . . . . . . . . Parts Built . | . . . . . . . . . . . . . . . Authchips . | . . . . . . . . . . . . . . . Time . | . . . . . . . . . . . . . . . Total Part Build Rating . | . . . . . . . . . . . . . . . Parts Repaired . | . . . . . . . . . . . . . . . Time . | . . . . . . . . . . . . . . . Parts Recycled . | . . . . . . . . . . . . . . . Recycled Matter . | . . . . . . . . . . . . . . . Retrieved Matter . | . . . . . . . . . . . . . . . Retrieved Components . | . . . . . . . . . . . . . . . Parts Scanalyzed . | . . . . . . . . . . . . . . . Part Schematics Acquired . | . . . . . . . . . . . . . . . Parts Damaged . | . . . . . . . . . . . . . . . Bothacking | -11 -10 -10 -9 -8 -8 -8 -6 -6 -5 -4 -3 -3 -2 -1 ------------ Run | Jun Mat Min Mat Mat Sto Rec Fac DSF Fac Fac Res Tes Res Acc Used RIF Installer . | . . . . . . . . . . . . . . . Robots Hacked 1 | . . . . . . . . . . . . . 1 . Non-combat 1 | . . . . . . . . . . . . . 1 . Combat . | . . . . . . . . . . . . . . . Robot Hacks Applied 1 | . . . . . . . . . . . . . 1 . find_dsf 1 | . . . . . . . . . . . . . 1 . Relay Couplers Released . | . . . . . . . . . . . . . . . Fabnet Peak Effective % . | . . . . . . . . . . . . . . . Robots Rewired . | . . . . . . . . . . . . . . . Allies Hacked . | . . . . . . . . . . . . . . . Hacks Repelled . | . . . . . . . . . . . . . . . Allies | -11 -10 -10 -9 -8 -8 -8 -6 -6 -5 -4 -3 -3 -2 -1 -------- Run | Jun Mat Min Mat Mat Sto Rec Fac DSF Fac Fac Res Tes Res Acc Total Allies 1 | . . 1 . . . . . . . . . . . . Largest Group 1 | . . 1 1 . . . . . . . . . . . Highest-Rated Group 31 | . . 31 31 . . . . . . . . . . . Highest-Rated Ally 31 | . . 31 31 . . . . . . . . . . . Total Orders 2 | . . . . . . . . . . . . . . 2 EXPLORE 2 | . . . . . . . . . . . . . . 2 Ally Attacks 4 | . . . 4 . . . . . . . . . . . Total Damage 61 | . . . 61 . . . . . . . . . . . Kills . | . . . . . . . . . . . . . . . Allies Corrupted . | . . . . . . . . . . . . . . . Allies Melted . | . . . . . . . . . . . . . . . Intel | -11 -10 -10 -9 -8 -8 -8 -6 -6 -5 -4 -3 -3 -2 -1 ------- Run | Jun Mat Min Mat Mat Sto Rec Fac DSF Fac Fac Res Tes Res Acc Robot Analysis Total . | . . . . . . . . . . . . . . . Derelict Logs Recovered . | . . . . . . . . . . . . . . . Drone Launches 8 | . . . . . . . . . . . . . . 8 Drone Recoveries . | . . . . . . . . . . . . . . . Exploration | -11 -10 -10 -9 -8 -8 -8 -6 -6 -5 -4 -3 -3 -2 -1 ------------- Run | Jun Mat Min Mat Mat Sto Rec Fac DSF Fac Fac Res Tes Res Acc Turns Passed 1665 | 16 51 97 90 57 89 75 16 35 186 62 261 59 226 345 Spaces Moved 3240 | 22 79 176 137 103 194 235 49 77 417 180 566 113 380 512 Core 1237 | 20 79 176 137 103 9 . . . 5 . 108 113 290 197 Treads 4 | 2 . . . . . . . 1 . . 1 . . . Legs . | . . . . . . . . . . . . . . . Wheels . | . . . . . . . . . . . . . . . Hover 321 | . . . . . . . . . 3 . . . 3 315 Flight 1678 | . . . . . 185 235 49 76 409 180 457 . 87 . Fastest Speed 29 | 50 50 50 50 50 32 32 32 32 29 31 31 50 40 47 Average Speed 41 | 60 50 50 50 50 35 32 32 34 33 31 37 50 47 49 Slowest Speed 197 | 160 50 50 50 50 75 32 32 170 60 31 197 50 60 57 Overloaded Moves . | . . . . . . . . . . . . . . . Propulsion Burnouts . | . . . . . . . . . . . . . . . Robots Hopped 49 | . . . . . 20 5 . 1 8 4 9 . 2 . Cave-ins Triggered . | . . . . . . . . . . . . . . . Exploration Rate (%) 29 | 3 26 53 21 16 46 65 2 88 20 7 32 18 18 26 Regions Visited 14 Branch Regions 4 Pre-discovered Areas . | . . . . . . . . . . . . . . . Known Exits Taken 5 | . . . . . 1 . 1 . . . 1 1 1 . Unknown Exits Taken 8 | 1 1 1 1 1 . 1 . . 1 1 . . . . Scrap Searched 1 | . . 1 . . . . . . . . . . . . Spaces Dug 35 | . . . 18 . 8 . . . . 1 . . 1 7 Terrain Destroyed 163 | . . . 37 . 20 . . . 20 1 26 . 1 58 Melee 1 | . . . . . . . . . . 1 . . . . Projectile 10 | . . . . . . . . . . . . . 1 9 AOE 152 | . . . 37 . 20 . . . 20 . 26 . . 49 Terrain Rammed . | . . . . . . . . . . . . . . . Walls Destroyed . | . . . . . . . . . . . . . . . Machines Disabled . | . . . . . . . . . . . . . . . Actions | -11 -10 -10 -9 -8 -8 -8 -6 -6 -5 -4 -3 -3 -2 -1 --------- Run | Jun Mat Min Mat Mat Sto Rec Fac DSF Fac Fac Res Tes Res Acc Total 3435 | 23 89 183 154 106 187 229 48 84 438 178 591 114 419 592 Wait 59 | . . 2 . . . . . . 4 . . . 19 34 Move 3140 | 21 78 175 136 103 160 225 48 74 401 172 548 112 375 512 Hop 38 | . . . . . 13 4 . 1 7 3 8 . 2 . Pick Up 13 | . . 4 . . 1 . . 2 . . 1 1 . 4 Fast Attach 44 | 2 . 1 . 1 4 . . 1 14 1 6 1 7 6 Attach 26 | . . . 3 . 2 . . 1 2 . 6 . 5 7 Detach 21 | . . . 1 . 2 . . 1 2 . 5 . 7 3 Swap 1 | . . . . . 1 . . . . . . . . . Drop 7 | . . . . . . . . 2 1 . 1 . . 3 Fire 22 | . . . 3 . 2 . . . . . 2 . 3 12 Melee 21 | . . . . 1 2 . . . 7 2 9 . . . Ram 38 | . 11 1 11 1 . . . . . . 5 . 1 8 Kick . | . . . . . . . . . . . . . . . Crush . | . . . . . . . . . . . . . . . Escape Stasis 2 | . . . . . . . . 2 . . . . . . Rewire . | . . . . . . . . . . . . . . . Trap . | . . . . . . . . . . . . . . . Miscellaneous 3 | . . . . . . . . . . . . . . 3 Route ------- -11/Junkyard -10/Materials -10/Mines -9/Materials -8/Materials -8/Storage -8/Recycling -6/Factory -6/DSF -5/Factory (discovered 2 exits: *Fac / [*Ext]) -4/Factory (discovered 4 exits: *Res / *Upp x2 / Arm) -3/Research -3/Testing -2/Research -1/Access (discovered 1 exit: Sur) History --------- Turn | Location | Event 3 | -11/Junkyard | Discovered new exit (range 16) 17 | -11/Junkyard | Entered Materials 63 | -10/Materials | Discovered new exit (range 9) 68 | -10/Materials | Entered Mines 70 | -10/Mines | Met a Derelict who couldn't figure out how to use a Trap Extractor 157 | -10/Mines | Discovered new exit (range 13) 162 | -10/Mines | Received a Mining Laser from a helpful Derelict 165 | -10/Mines | Entered Materials 165 | -9/Materials | Accompanied by 1 ally 165 | -9/Materials | Evolved 2 slots: Propulsion x1, Utility x1 247 | -9/Materials | Discovered new exit (range 16) 255 | -9/Materials | Entered another Materials area 255 | -8/Materials | Evolved 2 slots: Propulsion x1, Utility x1 300 | -8/Materials | Build established: Mutant 306 | -8/Materials | Discovered new exit (range 13) 312 | -8/Materials | Entered Storage 330 | -8/Storage | Identified exit to Recycling 354 | -8/Storage | Core integrity fell below 50% 392 | -8/Storage | Lost 3 parts (1u2w) 400 | -8/Storage | Used back door to open Recycling access 401 | -8/Storage | Entered Recycling 475 | -8/Recycling | Discovered new exit (range 5) 476 | -8/Recycling | Entered Factory 476 | -6/Factory | Evolved 4 slots: Propulsion x2, Utility x2 492 | -6/Factory | Identified exit to DSF 492 | -6/Factory | Entered DSF 510 | -6/DSF | Additional patrols routed to DSF 522 | -6/DSF | Discovered new exit (range 14) 527 | -6/DSF | Entered Factory 527 | -5/Factory | Evolved 2 slots: Propulsion x1, Utility x1 598 | -5/Factory | Discovered new exit (range 12) 681 | -5/Factory | Lost 8 parts (6n1u1w) 711 | -5/Factory | Discovered new exit (range 4) 713 | -5/Factory | Entered another Factory area 713 | -4/Factory | Evolved 2 slots: Propulsion x2 739 | -4/Factory | Identified exit to Upper Caves 739 | -4/Factory | Identified exit to Armory 772 | -4/Factory | Discovered new exit (range 12) 775 | -4/Factory | Entered Research 775 | -3/Research | Evolved 2 slots: Propulsion x1, Utility x1 875 | -3/Research | Found Gamma Bomb Array 913 | -3/Research | System corruption reached 10% 933 | -3/Research | Lost 5 parts (4n1u) 943 | -3/Research | Build established: Sprinter 950 | -3/Research | Spotted B-86 Titan 1004 | -3/Research | Lost 7 parts (1p4n1u1w) 1014 | -3/Research | Core integrity fell below 50% 1014 | -3/Research | Spotted B-86 Titan 1025 | -3/Research | Search patrols dispatched 1031 | -3/Research | Discovered new exit (range 10) 1035 | -3/Research | Identified exit to Testing 1036 | -3/Research | Entered Testing 1044 | -3/Testing | Protovariant out of control (PP-WZ2QH08XWB) 1044 | -3/Testing | Unleashed a protovariant (PP-WZ2QH08XWB) 1082 | -3/Testing | Core integrity fell below 20% 1087 | -3/Testing | Discovered new exit (range 14) 1093 | -3/Testing | Identified exit to Research 1095 | -3/Testing | Entered Research 1095 | -2/Research | Evolved 2 slots: Propulsion x1, Utility x1 1254 | -2/Research | Spotted B-90 Cyclops 1274 | -2/Research | Spotted B-90 Cyclops 1315 | -2/Research | Discovered new exit (range 12) 1320 | -2/Research | Identified exit to Access 1321 | -2/Research | Entered Access 1321 | -1/Access | Evolved 2 slots: Power x1, Weapon x1 1360 | -1/Access | Build established: Mutant 1441 | -1/Access | Identified exit to Surface 1441 | -1/Access | Hacking Suite fried by hacking feedback 1566 | -1/Access | Core integrity fell below 50% 1598 | -1/Access | Search patrols dispatched 1612 | -1/Access | Energy Cycler disabled 1622 | -1/Access | Lost 10 parts (1p6n3u) 1649 | -1/Access | Core integrity fell below 20% 1666 | -1/Access | Destroyed by H-88 Terminator with KE Penetrator Last Messages --------------- 01627_ Destabilizing: System interference. 01627_ Adv. Signal Interpreter temporarily disabled. 01629_ Slammed into R-10 Processor. 01639_ K-01 Serf collects debris. 01648_ Drone sends a signal. 01649_ K-01 Serf collects debris. 01650_ System corrupted: Matter fused (-7). 01652_ K-01 Serf collects debris. 01654_ Critical hit (Burn: +37). 01654_ G-73 Enforcer suffers critical hit (Burn). 01654_ Antigrav Array destroyed. 01655_ P-80 Master resets G-73 Enforcer, system corruption cleaned. 01656_ K-01 Serf collects debris. 01657_ Adv. Signal Interpreter destroyed. 01658_ Slammed into G-73 Enforcer. 01660_ Slug penetrates Wall. 01663_ Slug penetrates Door. 01663_ Slug penetrates Wall. 01663_ Adv. Transmission Jammer destroyed. 01666_ Penetrated by Slug. Map ----- +----------------------------------------------------+ | ???????????????????????????????????# ??? | | ????????????????????????????######## ????? | | ????????????????????????????# #?????? | | ????????????????????????????# #?????? | | ????????????????????????????# #?????? | | ????????????????????????????# +?????? | | ????????????????????????????# #??? ? | | ????????????????????????????# #?? | | ?????????????????????######## #? | | ?????????????????????# # ##"""""# | | ?????????????????????# # " " | | ?????????????????????# # " " | | ?????????????????????# / " " | | ?????????????????????# # " " | | ?????????????????????# # " " | | ?????????????????????# # " " | | ?????????????????????# # " " | | ?????????????????????# # " ""##### | | ?????????????????????# # " " #???? | | ?????????????????????# # # ###???? | | ?????????????????????# # # #?????? | | ?????????????????????# # # #?????? | | ??????????###############+### # #?????? | | ??????????# ! # ## # #?????? | | ??????????# + u ########?????? | | ??????????# # @ ## #????????????? | | ??????????# # ## #????????????? | | ??????????# ?## ### #????????????? | | ??????????###########??# #?# #????????????? | | ???????????????#######?#hh#?# #????????????? | | ??????????????? * #?# #?#########????????????? | | ??????????????? #?# ###########????????????? | | ??????????????? ### # = #???????????## | | ??????????????? "# # #???????????# | | ##############? ""# # " #???????????# | | # #?" ] ""# + """ #???????????# | | # #"" ""# p# """ #???????????# | | # #"" ""# R# " #?#######???# | | # #"" T"# # #?#"""""#???# | | # #"T ""# # * ###""T""##### | | # #"" ""# ############ ^ | | # #"" ""#p #?????# #### | | # #"" ""# #?????# ##"" | | # #"" "# #?????# ##"" "" | | # #" #?# #######?##"T "" | | # # #?# # #"" """"" | | # # =#?# # #"" """"" | | ########+######+######## # ""### "" | | # ""#?# ^"" | | " T"#?# | +----------------------------------------------------+ Best States ------------- Heat Dissipation 52 Energy Generation 25 Energy Capacity 350 Matter Stores 300 Matter Capacity 300 Sight Range 23 Terrain Scan Density 10 Jamming Range 16 Armor Coverage 600 Phase Shifting 5 Evasion (%) 80 Recoil Reduction 3 Offensive Hacking 22 Defensive Hacking 14 Item Schematics ----------------- None Robot Schematics ------------------ None Fabricated ------------ Nothing Alien Tech Used ----------------- None Achievements -------------- Rampage Challenges ------------ None Game ------ Seed MatterMetafiberStick Manual? 0 Play Time 00:58:09 Cumulative 229.6 hours Start 2023.03.22 @ 01:18:53 End 2023.03.22 @ 02:15:18 Sessions 1 Manual Loads 0 Difficulty Rogue Special Mode None Game No. 121 Rogue 121 Adventurer 0 Explorer 0 Win Type - Total 9 Types 5/0/1/2/0/0/1/0/0 Lore% 76 Gallery% 80 Achievement% 73 Wizard Run 0 Options --------- ASCII 0 Keyboard 1 Movement Arrows Keybinds 0 Fullscreen 2 Font 18/X11 Map View 76x50 Tactical HUD 1 Map Filters NONE Filters NONE Steam 1 RUN: ae24c5e2-8e3e-4a6a-82ae-fa7e73909de6